Cogmind - Beta 12 @@@ ROGUE MODE // 2023.08.04 @ 12:45:58 Player: Kersh Result: Self-destructed Performance ------------- Evolutions (1) 500 Regions Visited (2) 400 Robots Destroyed (28) 140 Value Destroyed (830) 830 Prototype IDs (3) 60 Alien Tech Used (0) 0 Bonus (0) 0 TOTAL SCORE: 1930 Bonus ------- None Cogmind --------- Core Integrity 279/400 Matter 168/300 Energy 250/250 System Corruption 0% Temperature Cool (91) Movement Treading (145) Location -9/Materials Parts ------- > --- POWER (1) -------- Ion Engine > --- PROPULSION (3) --- Advanced Treads Advanced Treads Advanced Treads > --- UTILITY (3) ------ Large Storage Unit Hardened Light Armor Plating > --- WEAPON (2) ------- (None) > --- INVENTORY (15) --- Ion Engine Improved Treads Improved Treads Improved Treads Improved Heat Sink Improved Heat Sink Medium Storage Unit Seismic Detector Hardened Light Armor Plating Shield Generator Medium Laser Assault Rifle Maul Peak State ------------ > --- POWER ------------ Ion Engine > --- PROPULSION ------- Advanced Treads Advanced Treads Advanced Treads > --- UTILITY ---------- Large Storage Unit Hardened Light Armor Plating Shield Generator > --- WEAPON ----------- Shotgun Improved Light Cannon > --- INVENTORY -------- Ion Engine Improved Treads Improved Treads Improved Heat Sink Improved Heat Sink Medium Storage Unit Seismic Detector Hardened Light Armor Plating Shield Generator Medium Laser Assault Rifle Maul [Rating: 21] Favorites ----------- Power Ion Engine Engine Ion Engine Propulsion Advanced Treads Treads Advanced Treads Leg Aluminum Leg Utility Seismic Detector Device Seismic Detector Storage Medium Storage Unit Protection Hardened Light Armor Plating Weapon Assault Rifle Energy Gun Medium Laser Ballistic Gun Assault Rifle Ballistic Cannon Improved Light Cannon Build | -11 -10 -9 ------- Run | Jun Mat Mat Slots Evolved 2 | . . 2 Power . | . . . Propulsion 1 | . . 1 Utility 1 | . . 1 Weapon . | . . . Parts Attached 23 | 8 2 13 Power 2 | 1 . 1 Engine 2 | 1 . 1 Core . | . . . Reactor . | . . . Propulsion 7 | 2 . 5 Treads 4 | . . 4 Leg 3 | 2 . 1 Wheel . | . . . Hover . | . . . Flight . | . . . Utility 9 | 2 2 5 Device 4 | 1 . 3 Storage 4 | 1 2 1 Processor . | . . . Hackware . | . . . Protection 1 | . . 1 Artifact . | . . . Weapon 5 | 3 . 2 Energy Gun 2 | 2 . . Energy Cannon . | . . . Ballistic Gun 2 | 1 . 1 Ballistic Cannon 1 | . . 1 Launcher . | . . . Special Weapon . | . . . Impact Weapon . | . . . Slashing Weapon . | . . . Piercing Weapon . | . . . Special Melee Weapon . | . . . Unidentified Prototypes . | . . . Parts Lost 3 | . . 3 Power . | . . . Propulsion . | . . . Utility 1 | . . 1 Weapon 2 | . . 2 Highest Loss Streak 2 | . . 2 To Critical Strikes . | . . . Average Slot Usage (%) 97 | . 100 96 Engine 11 | . 14 11 Treads 24 | . . 29 Leg 7 | . 28 2 Device 11 | . 14 10 Storage 11 | . 14 11 Protection 7 | . . 9 Energy Gun 5 | . 14 4 Ballistic Gun 11 | . 14 10 Ballistic Cannon 5 | . . 6 Naked Turns . | . . . Heaviest Build 39 | 15 30 39 Greatest Support 66 | 20 20 66 Greatest Overweight (x) 6 | . 1 6 Average Overweight (x) . | . . . Largest Inventory Capacity 15 | 8 15 15 Average Capacity 11 | 7 9 12 Most Carried 13 | 4 6 13 Average Carried 8 | 2 5 10 Final Capacity 15 | 8 10 15 Final Carried 13 | 4 6 13 Class Distribution -------------------- 100% | Mutant Dominant Class ---------------- Mutant | -10/Materials Mutant | -9/Materials Resources | -11 -10 -9 ----------- Run | Jun Mat Mat Matter Collected 823 | 298 47 478 Remotely . | . . . Salvage Created 943 | 99 82 762 Parts 48 | 4 5 39 Haulers Intercepted 1 | . . 1 Recyclers Shooed 2 | 2 . . Parts Field Recycled . | . . . Retrieved Matter . | . . . Parts Self-Destructed . | . . . Prevented . | . . . Kills | -11 -10 -9 ------- Run | Jun Mat Mat Combat Hostiles Destroyed 24 | . 2 22 Guns 15 | . 2 13 Cannons 9 | . . 9 Classes Destroyed 8 | 2 1 5 Worker 1 | . . 1 Tunneler 1 | 1 . . Hauler 1 | . . 1 Recycler 1 | 1 . . Swarmer 4 | . . 4 Grunt 16 | . 2 14 Brawler 1 | . . 1 Sentry 3 | . . 3 Best Kill Streak 7 | 1 2 7 Combat Bots Only 7 | . 2 7 Max Kills in Single Turn 2 | 1 1 2 Gunslinging . | . . . Exploded . | . . . Melee . | . . . Uniques/NPCs Destroyed . | . . . Combat | -11 -10 -9 -------- Run | Jun Mat Mat Damage Taken 1158 | . 76 1082 Core 132 | . 11 121 Absorbed by Shields 157 | . . 157 Core Remaining (%) 97 | 100 95 . Volleys Fired 105 | 6 9 90 Largest 2 | 2 2 2 Hottest 70 | 70 70 70 Shots Fired 182 | 12 18 152 Gun 113 | 12 18 83 Cannon 69 | . . 69 Launcher . | . . . Special . | . . . Kinetic 146 | 6 9 131 Thermal 36 | 6 9 21 Explosive . | . . . Electromagnetic . | . . . Robot Hit Streak 13 | 4 6 13 Robot Miss Streak 6 | 1 3 6 Penetration Max . | . . . Secondary Targets . | . . . Shots Hit Robots 103 | 7 10 86 Core Hits 49 | 3 3 43 Critical Kills . | . . . Critical Parts Destroyed 1 | . . 1 Critical Strikes 4 | . . 4 Burn 1 | . . 1 Destroy 1 | . . 1 Blast 2 | . . 2 Melee Attacks . | . . . Impact . | . . . Slashing . | . . . Piercing . | . . . Sneak Attacks . | . . . Combat Hostiles . | . . . Follow-up Attacks . | . . . Damage Inflicted 1799 | 90 125 1584 Guns 1109 | 90 125 894 Cannons 687 | . . 687 Explosions . | . . . Melee . | . . . Ramming 3 | . . 3 Kinetic 1518 | 52 74 1392 Thermal 278 | 38 51 189 Explosive . | . . . Electromagnetic . | . . . Impact . | . . . Slashing . | . . . Piercing . | . . . Highest Corruption . | . . . Average Corruption . | . . . Corruption Purged . | . . . Corruption Blocked . | . . . Overload Shots . | . . . Overflow Damage 22 | . . 22 Projectiles 22 | . . 22 Explosions . | . . . Melee . | . . . Knockbacks 11 | . . 11 Impact 1 | . . 1 Kinetic 8 | . . 8 Secondary 2 | . . 2 Self-Inflicted Damage . | . . . Shots . | . . . Rammed 1 | . . 1 Targets Rammed 1 | . . 1 Kicked . | . . . Crushed . | . . . Highest Temperature 205 | 18 123 205 Average Temperature 54 | 9 64 55 Received Heat Transfer 512 | . 42 470 Siege Activations . | . . . Robots Corrupted . | . . . Combat Hostiles . | . . . Parts Fried . | . . . Impact Corruptions . | . . . Robots Melted . | . . . Combat Hostiles . | . . . Parts Melted 2 | 1 . 1 Heat Transferred 888 | 111 148 629 Parts Sabotaged . | . . . Parts Stolen . | . . . Parts Stripped . | . . . Power Chain Reactions . | . . . Missiles Intercepted . | . . . Alert | -11 -10 -9 ------- Run | Jun Mat Mat Peak Influence 375 | 10 56 375 Initial 23 | . 6 23 Average 92 | 1 14 124 Maximum Alert Level 1 | . . 1 Low Security (%) 88 | 100 100 84 Level 1 11 | . . 15 Level 2 . | . . . Level 3 . | . . . Level 4 . | . . . Level 5 . | . . . High Security . | . . . Max Security . | . . . Squads Dispatched 5 | . 1 4 Investigation 1 | . 1 . Extermination . | . . . Reinforcement 4 | . . 4 Assault . | . . . Garrison . | . . . Intercept . | . . . Searches Triggered . | . . . Construction Impeded . | . . . Haulers Reinforced . | . . . Active Scanning Responses . | . . . Cargo Convoy Interrupts . | . . . Stealth | -11 -10 -9 --------- Run | Jun Mat Mat Distress Signals 4 | . . 4 Communications Jammed . | . . . Distress Signals . | . . . Times Spotted 41 | . 2 39 Peak Tracking Total 8 | . 2 8 Tactical Retreats . | . . . Traps | -11 -10 -9 ------- Run | Jun Mat Mat Traps Triggered . | . . . Indirectly . | . . . Trap Hack Attempts . | . . . Triggered . | . . . Disarmed . | . . . Reprogrammed . | . . . Reused . | . . . Traps Extracted . | . . . Installed . | . . . Triggered . | . . . Machines | -11 -10 -9 ---------- Run | Jun Mat Mat Machines Disabled 2 | . . 2 Max in Single Turn 1 | . . 1 Machines Repaired . | . . . Machines Sabotaged . | . . . Overloaded Fab Kills . | . . . Hacking | -11 -10 -9 --------- Run | Jun Mat Mat Machines Accessed 6 | . 2 4 Terminals 6 | . 2 4 Fabricators . | . . . Repair Stations . | . . . Recycling Units . | . . . Scanalyzers . | . . . Garrison Access . | . . . Total Hacks 12 | . 3 9 Successful 4 | . 1 3 Failed 8 | . 2 6 Catastrophic . | . . . Database Lockouts . | . . . Manual 7 | . . 7 Terminals 12 | . 3 9 Fabricators . | . . . Repair Stations . | . . . Recycling Units . | . . . Scanalyzers . | . . . Garrison Access . | . . . Terminal Hacks 4 | . 1 3 Robot Analysis 1 | . . 1 Prototype ID Bank 2 | . . 2 Alert Level 1 | . 1 . Fabricator Hacks . | . . . Repair Station Hacks . | . . . Recycling Unit Hacks . | . . . Scanalyzer . | . . . Garrison Access Hacks . | . . . Unauthorized Hacks . | . . . Terminals . | . . . Fabricators . | . . . Repair Stations . | . . . Recycling Units . | . . . Scanalyzers . | . . . Garrison Access . | . . . Data Cores Recovered . | . . . Used . | . . . Hacking Detections 4 | . 1 3 Full Trace Events 1 | . 1 . Feedback Events . | . . . Feedback Blocked . | . . . Robot Schematics Acquired . | . . . Robots Built . | . . . Authchips . | . . . Time . | . . . Total Robot Build Rating . | . . . Part Schematics Acquired . | . . . Parts Built . | . . . Authchips . | . . . Time . | . . . Total Part Build Rating . | . . . Parts Repaired . | . . . Time . | . . . Parts Recycled . | . . . Recycled Matter . | . . . Retrieved Matter . | . . . Retrieved Components . | . . . Parts Scanalyzed . | . . . Part Schematics Acquired . | . . . Parts Damaged . | . . . Bothacking | -11 -10 -9 ------------ Run | Jun Mat Mat Used RIF Installer . | . . . Robots Hacked . | . . . Non-combat . | . . . Combat . | . . . Robot Hacks Applied . | . . . Relay Couplers Released . | . . . Fabnet Peak Effective % . | . . . Robots Rewired . | . . . Allies Hacked . | . . . Hacks Repelled . | . . . Allies | -11 -10 -9 -------- Run | Jun Mat Mat Total Allies . | . . . Largest Group . | . . . Highest-Rated Group . | . . . Highest-Rated Ally . | . . . Total Orders . | . . . Ally Attacks . | . . . Total Damage . | . . . Kills . | . . . Allies Corrupted . | . . . Allies Melted . | . . . Intel | -11 -10 -9 ------- Run | Jun Mat Mat Robot Analysis Total 1 | . . 1 Derelict Logs Recovered . | . . . Drone Launches . | . . . Drone Recoveries . | . . . Exploration | -11 -10 -9 ------------- Run | Jun Mat Mat Turns Passed 1523 | 184 235 1104 Spaces Moved 811 | 131 167 513 Core 11 | 10 . 1 Treads 460 | . . 460 Legs 340 | 121 167 52 Wheels . | . . . Hover . | . . . Flight . | . . . Fastest Speed 50 | 50 120 120 Average Speed 133 | 114 120 142 Slowest Speed 350 | 120 190 350 Overloaded Moves . | . . . Propulsion Burnouts . | . . . Robots Hopped . | . . . Cave-ins Triggered . | . . . Exploration Rate (%) 28 | 6 29 49 Regions Visited 2 Branch Regions . Pre-discovered Areas . | . . . Known Exits Taken . | . . . Unknown Exits Taken 2 | 1 1 . Scrap Searched . | . . . Spaces Dug 3 | . . 3 Terrain Destroyed 4 | . . 4 Melee . | . . . Projectile 4 | . . 4 AOE . | . . . Terrain Rammed . | . . . Walls Destroyed . | . . . Machines Disabled . | . . . Actions | -11 -10 -9 --------- Run | Jun Mat Mat Total 1064 | 149 182 733 Wait 93 | 1 1 91 Move 809 | 130 166 513 Hop . | . . . Pick Up 16 | 3 2 11 Fast Attach 15 | 8 1 6 Attach 2 | . . 2 Detach 7 | 1 . 6 Swap 6 | . 1 5 Drop 10 | . 2 8 Fire 105 | 6 9 90 Melee . | . . . Ram . | . . . Kick . | . . . Crush 1 | . . 1 Escape Stasis . | . . . Rewire . | . . . Trap . | . . . Miscellaneous . | . . . Route ------- -11/Junkyard -10/Materials -9/Materials (discovered 2 exits: [*Mat] / [*Min]) History --------- Turn | Location | Event 3 | -11/Junkyard | Discovered new exit (range 15) 185 | -11/Junkyard | Entered Materials 263 | -10/Materials | Discovered new exit (range 10) 308 | -10/Materials | Build established: Mutant 420 | -10/Materials | Entered another Materials area 420 | -9/Materials | Evolved 2 slots: Propulsion x1, Utility x1 809 | -9/Materials | Discovered new exit (range 14) 1005 | -9/Materials | Discovered new exit (range 8) 1256 | -9/Materials | Destroyed 7 combat bots 1388 | -9/Materials | Destroyed 7 combat bots 1524 | -9/Materials | Self-destructed Last Messages --------------- 01454_ G-34 Mercenary destroyed. 01459_ K-01 Serf collects debris. 01462_ R-06 Scavenger collects Ion Engine. 01462_ K-01 Serf collects debris. 01463_ Shield Generator destroyed. 01465_ K-01 Serf collects debris. 01467_ R-06 Scavenger collects Aluminum Leg. 01467_ K-01 Serf collects debris. 01470_ R-06 Scavenger collects Sml. Laser. 01470_ R-06 Scavenger collects Wheel. 01471_ K-01 Serf collects debris. 01472_ R-06 Scavenger collects Lgt. Nuclear Core. 01475_ K-01 Serf collects debris. 01476_ R-06 Scavenger collects Particle Gun. 01481_ K-01 Serf destroyed. 01489_ R-06 Scavenger collects Wheel. 01493_ Repair Station disabled. 01509_ Critical hit (Burn: +37). 01512_ Shotgun destroyed. 01524_ Imp. Light Cannon destroyed. Map ----- +----------------------------------------------------+ | | | | | | | | | | | | | | | | | ???????##########????????????????????????????????? | | ??????# #????????????????????????????????? | | ??????# #????????????????????????????????? | | ??????# """"""" #????????????????????????????????? | | ??????# """"""" #########??????????????##########? | | ??????# """"""" ## #??????????????# #? | | ??????# """"""" ## """ #????????#######" """ #? | | ??????# """"""" ## """ #????????# #T """ #? | | ??????# ## """ #????????# < #" """ #? | | #####?######/#####! #???????## # #? | | #"""##????# !+ """ #???????#" # """ ## | | "|||"##???# #### """ #########" # """ # | | " ""#???# #??# """ # # # """ # | | #???# #??# # """ # # # | | < #???# #??# """ # """ # ###+####### | | ##### #??# """ # """ # | | + #??# """ # Y +%= | | ## #??# #@"" #= % | | # ### #??####+###"R # " #### | | # ##### #""" # % % """ # %! | | + # # % "" # | | #"^ ! ########## """ / / | | #T ^ #????????# "" %# | | #" ^ ## # #????????# """% #### | | # ## #######????????# %%""" ##?? | | # ##! !#???????######## %" " #?? | | + ###!!!!##???????# #?? | | # """ #?######????????# #?? | | # ^""" ################# / ! #?? | | # """ %%#?? | | % % %#### | | !! ############################ %%# "" | | !% # #????????# # %%# "" | | ############* # ! #????????# +[[=+ | | ??# %*[+ + #????????# # % # | | ??# !* # # #????????######### # ## | | ??# """ = # # #???????????????## ###? | | ??# """ [# ### """" #????????######## ### | | ??# """ # #?# """" #????????# | | ??# # #?# """" #????????# T | | ??# # #?#########??????????# | | ??########## #????????????????????# #### ### | +----------------------------------------------------+ Best States ------------- Heat Dissipation 28 Energy Generation 10 Energy Capacity 250 Matter Stores 300 Matter Capacity 300 Sight Range 16 Terrain Scan Density 10 Armor Coverage 150 Evasion (%) 55 Recoil Reduction 3 Item Schematics ----------------- None Robot Schematics ------------------ None Fabricated ------------ Nothing Alien Tech Used ----------------- None Achievements -------------- None Challenges ------------ None Game ------ Seed MiniChromaticClaws Manual? 0 Play Time 00:13:43 Cumulative 46.9 hours Start 2023.08.02 @ 20:21:48 End 2023.08.04 @ 12:45:58 Sessions 3 Manual Loads 0 Difficulty Rogue Special Mode None Game No. 49 Rogue 47 Adventurer 1 Explorer 1 Win Type - Total 0 Types 0/0/0/0/0/0/0/0/0 Lore% 37 Gallery% 42 Achievement% 34 Wizard Run 0 Options --------- ASCII 0 Keyboard 1 Movement Numpad Keybinds 0 Fullscreen 2 Font 18/Terminus Map View 76x50 Tactical HUD 1 Map Filters NONE Filters NONE Steam 1 RUN: a0bb2a02-88b1-43b7-bb9d-410c51336f7d